fUST/lending_fUST_20240322
["ID","MTS","AMOUNT","RATE_DAILY","PERIOD"]
[319991263,1711054232840,-500.0,0.00030136,2]
[319991266,1711054232849,-500.0,0.00030136,2]
[319991268,1711054232860,-6815.77,0.00030136,2]
[319991270,1711054232870,-1351.01,0.00030136,2]
[319991272,1711054232879,-968.17,0.00030136,2]
[319991274,1711054232888,-1980.24,0.00030136,2]
[319991276,1711054232897,-2781.7,0.00030136,2]
[319991278,1711054232906,-500.0,0.00030136,2]
[319991280,1711054232915,-540.19,0.00030136,2]
[319991282,1711054232923,-500.0,0.00030136,2]
[319991284,1711054232932,-500.0,0.00030136,2]
[319991285,1711054232941,-873.76,0.00030136,2]
[319991288,1711054232951,-8297.24,0.00030136,2]
[319991290,1711054232960,-505.59911035,0.00030136,2]
[319991291,1711054232969,-500.0,0.00030136,2]
[319991293,1711054232978,-11010.8,0.00030136,2]
[319991295,1711054232987,-752.95,0.00030136,2]
[319991297,1711054232996,-903.45,0.00030136,2]
[319991299,1711054233005,-1673.08,0.00030136,2]
[319991301,1711054233014,-500.0,0.00030136,2]
[319991303,1711054233023,-2942.11,0.00030136,2]
[319991304,1711054233032,-729.31,0.00030136,2]
[319991305,1711054233041,-500.0,0.00030136,2]
[319991306,1711054233050,-804.14,0.00030136,2]
[319991307,1711054233061,-500.0,0.00030136,2]
[319991308,1711054233071,-500.0,0.00030136,2]
[319991309,1711054233081,-572.34772746,0.00030136,2]
[319991310,1711054233090,-500.0,0.00030136,2]
[319991311,1711054233102,-1527.57,0.00030136,2]
[319991312,1711054233112,-607.73,0.00030136,2]
[319991313,1711054233121,-500.0,0.00030136,2]
[319991314,1711054233129,-500.0,0.00030136,2]
[319991315,1711054233139,-500.0,0.00030136,2]
[319991316,1711054233147,-500.0,0.00030136,2]
[319991317,1711054233156,-19580.57,0.00030136,2]
[319991318,1711054233165,-710.36,0.00030136,2]
[319991319,1711054233175,-500.0,0.00030136,2]
[319991321,1711054233184,-8608.66,0.00030136,2]
[319991323,1711054233193,-1312.22,0.00030136,2]
[319991325,1711054233203,-494.50174297,0.00030136,2]
[319991327,1711054233212,-500.0,0.00030136,2]
[319991329,1711054233221,-500.0,0.00030136,2]
[319991331,1711054233230,-500.0,0.00030136,2]
[319991333,1711054233239,-785.27,0.00030136,2]
[319991335,1711054233248,-500.0,0.00030136,2]
[319991337,1711054233258,-500.0,0.00030136,2]
[319991340,1711054233269,-2210.18,0.00030136,2]
[319991341,1711054233279,-500.0,0.00030136,2]
[319991343,1711054233288,-598.97778498,0.00030136,2]
[319991345,1711054233297,-500.0,0.00030136,2]
[319991347,1711054233306,-1053.06,0.00030136,2]
[319991349,1711054233319,-662.2,0.00030136,2]
[319991351,1711054233328,-500.0,0.00030136,2]
[319991353,1711054233338,-2090.06,0.00030136,2]
[319991356,1711054233348,-500.0,0.00030136,2]
[319991357,1711054233356,-500.0,0.00030136,2]
[319991359,1711054233366,-3804.65,0.00030136,2]
[319991362,1711054233375,-500.0,0.00030136,2]
[319991364,1711054233385,-400.0,0.000306,3]
[319991366,1711054233395,-2608.75394376,0.00030683,4]
[319991368,1711054233403,-154.86062544,0.00030684,2]
[319991370,1711054233412,-1008.03599284,0.00030684,4]
[319991372,1711054233422,-152.82691385,0.00030684,2]
[319991374,1711054233431,-500.0,0.00030684,2]
[319991375,1711054233439,-500.0,0.00030684,2]
[319991377,1711054233449,-530.63,0.00030684,2]
[319991380,1711054233458,-500.0,0.00030684,2]
[319991382,1711054233467,-500.0,0.00030684,2]
[319991383,1711054233476,-490.56658904,0.00030684,2]
[319991385,1711054233485,-538.07,0.00030684,2]
[319991388,1711054233495,-500.0,0.00030684,2]
[319991389,1711054233506,-564.36,0.00030684,2]
[319991391,1711054233516,-733.9,0.00030684,2]
[319991393,1711054233525,-500.0,0.00030684,2]
[319991396,1711054233534,-353.88026276,0.00030684,2]
[319991398,1711054233544,-500.0,0.00030684,2]
[319991400,1711054233553,-604.4,0.00030684,2]
[319991402,1711054233565,-500.0,0.00030684,2]
[319991404,1711054233574,-500.0,0.00030684,2]
[319991406,1711054233583,-156.25249594,0.00030684,2]
[319991408,1711054233593,-885.24,0.00030684,2]
[319991410,1711054233602,-500.0,0.00030684,2]
[319991412,1711054233611,-699.83,0.00030684,2]
[319991414,1711054233621,-561.97,0.00030684,2]
[319991415,1711054233630,-1245.14,0.00030684,2]
[319991418,1711054233639,-500.0,0.00030684,2]
[319991420,1711054233649,-1139.38,0.00030684,2]
[319991422,1711054233658,-500.0,0.00030684,2]
[319991424,1711054233667,-500.0,0.00030684,2]
[319991426,1711054233676,-500.0,0.00030684,2]
[319991427,1711054233686,-753.2,0.00030684,2]
[319991429,1711054233695,-500.0,0.00030684,2]
[319991431,1711054233705,-604.32981245,0.00030684,2]
[319991830,1711054237801,-329.06018755,0.00030684,2]
[319991832,1711054237810,-500.0,0.00030684,2]
[319991834,1711054237821,-572.44,0.00030684,2]
[319991836,1711054237829,-694.71,0.00030684,2]
[319991838,1711054237838,-500.0,0.00030684,2]
[319991840,1711054237847,-500.0,0.00030684,2]
[319991842,1711054237856,-500.0,0.00030684,30]
[319991844,1711054237865,-256.78774487,0.00030684,2]
[319992068,1711054240044,-243.21225513,0.00030684,2]
[319992070,1711054240054,-500.0,0.00030684,2]
[319992072,1711054240075,-500.0,0.00030684,2]
[319992074,1711054240085,-500.0,0.00030684,2]
[319992076,1711054240095,-500.0,0.00030684,2]
[319992079,1711054240107,-500.0,0.00030684,2]
[319992081,1711054240119,-500.0,0.00030684,2]
[319992082,1711054240129,-500.0,0.00030684,2]
[319992084,1711054240138,-430.18019889,0.00030684,2]
[319994610,1711054457832,3738.75966746,0.000125,2]
[319994706,1711055432016,-779.49019222,0.00027608,2]
[319994708,1711055432025,-3275.16364282,0.00027609,2]
[319994710,1711055432035,-863.54495364,0.0002761,2]
[319994712,1711055432044,-166.666666,0.00027611,2]
[319994713,1711055432053,-177.030808,0.0002792,2]
[319994715,1711055432063,-229.4552556,0.00028222,2]
[319994716,1711055432072,-239.89810597,0.0002849,2]
[319994717,1711055432081,-405.14954919,0.00028491,2]
[319994718,1711055432091,-8610.06660762,0.00028492,2]
[319994719,1711055432102,-16279.93339238,0.00028492,2]
[319994720,1711055432111,-166.666666,0.00028866,2]
[319994722,1711055432121,-205.379669,0.00028874,2]
[319994724,1711055432132,-1588.69622234,0.00029739,2]
[319994725,1711055432141,-997.52079434,0.0002974,2]
[319994726,1711055432150,-177.030808,0.00029874,2]
[319994727,1711055432159,-356.0,0.0003,2]
[319994728,1711055432168,-500.0,0.00030035,2]
[319994729,1711055432177,-398.7815717,0.00030035,2]
[319994730,1711055432187,-500.0,0.00030035,2]
[319994731,1711055432196,-4736.13879024,0.00030036,2]
[319994732,1711055432208,-6985.48133682,0.00030036,2]
[319994746,1711055438002,-509.65,0.00030036,2]
[319994767,1711055440263,-936.4355,0.00030036,2]
[319998652,1711056088422,2565.32,0.00025388,120]
[319998653,1711056222171,2261.24033254,0.000205,2]
[319998654,1711056236624,-5955.0,0.000205,2]
[319998655,1711056559161,-1783.75966746,0.000205,2]
[319998944,1711056634773,-166.666666,0.00028591,2]
[319998946,1711056634783,-166.666666,0.00029565,2]
[319998948,1711056634793,-220.88290306,0.00030034,4]
[319998950,1711056634803,-324.69722745,0.00030035,4]
[319998953,1711056634815,-3025.35000261,0.00030036,2]
[319998955,1711056634824,-644.58358971,0.00030036,2]
[319999231,1711056637707,169.0,0.00023178,2]
[319999260,1711056637983,170.0,0.00023452,2]
[319999822,1711056643339,-1000.0,0.00029836,2]
[319999824,1711056643348,-500.0,0.00029968,2]
[319999826,1711056643358,-355.41641029,0.00030036,2]
[319999828,1711056643367,-1008.03599284,0.00030036,4]
[319999830,1711056643376,-188.93988926,0.00030036,2]
[319999832,1711056643384,-289.86864955,0.00030134,2]
[319999833,1711056643393,-169.40931892,0.00030134,4]
[319999836,1711056643404,-641.41825796,0.00030134,4]
[319999837,1711056643415,-354.59975112,0.00030134,4]
[319999840,1711056643426,-1199.22449124,0.00030135,4]
[319999841,1711056643437,-500.0,0.00030135,2]
[319999843,1711056643447,-500.0,0.00030135,2]
[319999845,1711056643457,-500.0,0.00030135,2]
[319999848,1711056643466,-500.0,0.00030135,2]
[319999849,1711056643476,-424.46550969,0.00030135,2]
[320000124,1711056646348,-154.87609912,0.00029835,2]
[320000141,1711056646497,-10413.11726235,0.00030103,5]
[320000143,1711056646507,-2746.34065419,0.00030134,120]
[320000145,1711056646517,-5095.60156359,0.00030134,4]
[320000148,1711056646530,-5077.0450237,0.00030134,4]
[320000149,1711056646539,-154.87609912,0.00030134,4]
[320000151,1711056646549,-698.04978452,0.00030134,30]
[320000153,1711056646559,-232.99241824,0.00030134,4]
[320000155,1711056646568,-154.87609912,0.00030134,4]
[320000157,1711056646577,-75.53449031,0.00030135,2]
[320000159,1711056646586,-500.0,0.00030135,2]
[320000161,1711056646596,-500.0,0.00030135,2]
[320000163,1711056646606,-500.0,0.00030135,2]
[320000166,1711056646615,-500.0,0.00030135,2]
[320000168,1711056646624,-500.0,0.00030135,2]
[320000170,1711056646633,-3007.62385702,0.00030135,2]
[320000171,1711056646642,-3007.62385702,0.00030135,2]
[320000174,1711056646652,-3007.62385702,0.00030135,2]
[320000175,1711056646661,-3007.62385702,0.00030135,2]
[320000178,1711056646671,-3007.62385702,0.00030135,2]
[320000179,1711056646680,-3007.62385702,0.00030135,2]
[320000181,1711056646689,-260.04035305,0.00030135,2]
[320003108,1711057080463,198.61529443,0.0002,3]
[320003109,1711057578634,314.11701057,0.000189,2]
[320003110,1711057601157,-154.87609912,0.00023898,2]
[320003111,1711057601177,-154.87609912,0.00023899,2]
[320003112,1711057601196,-1398.67248294,0.00023899,2]
[320003114,1711057751088,-154.87609912,0.00023893,2]
[320003115,1711057751110,-118.71494088,0.00023894,2]
[320003139,1711057833174,-154.87609912,0.00023898,2]
[320003141,1711057833183,-487.72486184,0.00023899,2]
[320003143,1711057833194,-314.11701057,0.000239,2]
[320003145,1711057833204,-621.68947782,0.00024743,2]
[320003147,1711057833213,-2000.0,0.00025143,2]
[320003149,1711057833223,-2000.0,0.000259,30]
[320003151,1711057833234,-663.16612569,0.0002591,30]
[320003895,1711057840958,-523.53543373,0.0002591,30]
[320009512,1711057968505,-863.54495364,0.00022121,2]
[320009513,1711057968526,-205.08485362,0.00022122,2]
[320009514,1711057968545,-815.66428976,0.00022122,2]
[320009515,1711057968566,-154.87609912,0.00022122,2]
[320009516,1711057968716,-304.78785734,0.00022122,2]
[320009517,1711057968738,-617.12366123,0.00022122,2]
[320009518,1711057968760,-322.53706921,0.00022122,2]
[320009519,1711057968781,-275.42113425,0.00022122,2]
[320009520,1711057968801,-154.87609912,0.00022123,2]
[320009521,1711057968821,-1609.44195144,0.00022123,2]
[320009522,1711057968841,-1300.31421508,0.00022123,2]
[320009523,1711057968862,-1537.7459813,0.00022124,2]
[320009524,1711057968882,-534.71774984,0.00022125,2]
[320009525,1711057968902,-239.23094462,0.00022126,2]
[320009526,1711057968922,-685.3267314,0.00022127,2]
[320009527,1711057968942,-258.30640903,0.00022127,2]
[320009529,1711058074027,169.05907536,0.00025772,30]
[320009530,1711058095071,-683.361148,0.00022113,2]
[320009531,1711058095090,-559.42003302,0.00022114,2]
[320009532,1711058095111,-154.87609912,0.00022114,2]
[320009533,1711058095131,-154.87609912,0.00022115,2]
[320009534,1711058095152,-2602.9389218,0.00022115,2]
[320009535,1711058095173,-154.87609912,0.00022116,2]
[320009536,1711058095194,-779.49019222,0.00022116,2]
[320009537,1711058095214,-291.04503375,0.00022116,2]
[320009538,1711058095237,-154.87609912,0.00022117,2]
[320009539,1711058095257,-2.24027473,0.00022119,2]
[320009541,1711058407290,624.47875288,0.00020423,2]
[320009543,1711058643767,192.245171,0.00020334,2]
[320009544,1711058784155,150.0,0.00020025,2]
[320009546,1711058810678,154.87609912,0.00020025,2]
[320009547,1711058817125,-304.78785734,0.00020655,2]
[320009548,1711058817147,-179.48840126,0.00020656,2]
[320009549,1711058826651,154.87609912,0.00020025,2]
[320009550,1711058844656,163.74292111,0.00020025,2]
[320009551,1711058951099,-154.87609912,0.00020645,2]
[320009552,1711058951122,-205.08485362,0.00020645,2]
[320009553,1711058951143,-180.04968881,0.00020645,2]
[320009554,1711058951272,-239.23094462,0.00020646,2]
[320009555,1711058951292,-154.87609912,0.00020646,2]
[320009556,1711058951315,-154.87609912,0.00020647,2]
[320009557,1711058951335,-187.60782747,0.00020647,2]
[320009558,1711058951361,-154.87609912,0.00020648,2]
[320009559,1711058951382,-400.0,0.00020648,2]
[320009560,1711058951401,-1300.31421508,0.00020649,2]
[320009561,1711058951421,-211.02279149,0.00020661,2]
[320009562,1711058973741,24880.0,0.00020409,2]
[320010185,1711059047142,-0.38186296,0.0002066,2]
[320013659,1711059085671,150.0,0.000189,2]
[320022751,1711059413293,291.04503375,0.0002055,2]
[320022752,1711059422904,-154.8915759,0.00020551,2]
[320022753,1711059422929,-3504.98389291,0.00020551,2]
[320022754,1711059422953,-1300.31421508,0.00020552,2]
[320022755,1711059422977,-400.0,0.00020553,2]
[320022756,1711059423001,-815.66428976,0.00020553,2]
[320022757,1711059423024,-154.8915759,0.00020553,2]
[320022758,1711059423048,-10115.25756673,0.00020562,2]
[320022759,1711059423071,-667.04236555,0.00020662,2]
[320022760,1711059423095,-5537.80860274,0.00021,2]
[320022761,1711059497640,188.803645,0.00023288,120]
[320022762,1711059855499,-246.7846,0.00022092,7]
[320022965,1711060243246,-205.08485362,0.00020998,2]
[320022967,1711060243256,-89.88064555,0.00020999,2]
[320022969,1711060243268,-65.01093035,0.00020999,2]
[320022971,1711060243278,-202.30651102,0.00021,2]
[320022973,1711060243287,-2598.44266228,0.00021443,2]
[320023081,1711060580387,553.214021,0.00020168,2]
[320023082,1711060660621,4650.2866953,0.00020137,2]
[320023083,1711060667065,250.0,0.00020257,2]
[320023084,1711060678659,5168.48857907,0.00019936,2]
[320023086,1711060694538,1516.25930099,0.00019936,2]
[320023087,1711060810459,620.22393765,0.00020372,2]
[320023088,1711060863575,12196.2171813,0.00020045,2]
[320023090,1711060984465,179.363462,0.00023288,120]
[320023091,1711061033226,276.60701,0.00020382,2]
[320023092,1711061154515,195.219154,0.00020187,2]
[320023093,1711061374104,-304.78785734,0.00020623,2]
[320023094,1711061374124,-154.86062544,0.00020623,2]
[320023095,1711061374145,-154.86062544,0.00020624,2]
[320023096,1711061374165,-412.52107908,0.00020624,2]
[320023097,1711061374185,-154.86062544,0.00020625,2]
[320023098,1711061374205,-865.53386844,0.00020625,2]
[320023140,1711061431994,-1300.31421508,0.00020621,2]
[320023141,1711061432003,-1886.39734478,0.00020631,2]
[320023142,1711061432013,-300.0,0.00020632,2]
[320023143,1711061432023,-4601.64866161,0.00020993,2]
[320023144,1711061432033,-620.01119688,0.0002139,2]
[320023145,1711061432042,-160.91433934,0.0002168,2]
[320023146,1711061432053,-1181.68925957,0.0002168,2]
[320023147,1711061432062,-154.86062544,0.00021778,2]
[320023148,1711061432071,-295.97298019,0.00021778,2]
[320023149,1711061432081,-412.52107908,0.00021778,2]
[320023150,1711061432090,-379.28465998,0.00021778,2]
[320023151,1711061432099,-154.95399977,0.00021779,2]
[320023152,1711061432109,-154.87610531,0.00021779,2]
[320023153,1711061432118,-151.618039,0.0002178,2]
[320023154,1711061432128,-151.0,0.0002178,2]
[320023155,1711061432137,-151.0,0.0002178,2]
[320023156,1711061432147,-151.0,0.0002178,2]
[320023157,1711061432157,-151.0,0.0002178,2]
[320023158,1711061432276,-151.0,0.0002178,2]
[320023159,1711061432288,-100.19238729,0.0002178,2]
[320023276,1711061438115,-154.86062544,0.0002062,2]
[320023278,1711061438125,-1043.50589469,0.0002062,2]
[320023281,1711061438135,-97.32496571,0.0002178,2]
[320023285,1711061438146,-151.782006,0.0002178,2]
[320023288,1711061438155,-359.675237,0.0002178,2]
[320023289,1711061438164,-359.675237,0.0002178,2]
[320023292,1711061438174,-359.675237,0.0002178,2]
[320023294,1711061438183,-359.675237,0.0002178,2]
[320023295,1711061438194,-359.675237,0.0002178,2]
[320023297,1711061438205,-359.675237,0.0002178,2]
[320023298,1711061438216,-151.0,0.0002178,2]
[320023299,1711061438225,-151.0,0.0002178,2]
[320023300,1711061438234,-151.0,0.0002178,2]
[320023301,1711061438243,-151.0,0.0002178,2]
[320023302,1711061438254,-151.0,0.0002178,2]
[320023303,1711061438264,-151.0,0.0002178,2]
[320023304,1711061438274,-151.0,0.0002178,2]
[320023305,1711061438286,-151.0,0.0002178,2]
[320023306,1711061438297,-151.0,0.0002178,2]
[320023307,1711061438307,-151.0,0.0002178,2]
[320023308,1711061438316,-377.645359,0.0002178,2]
[320023309,1711061438325,-377.645359,0.0002178,2]
[320023310,1711061438335,-377.645359,0.0002178,2]
[320023311,1711061438345,-377.645359,0.0002178,2]
[320023312,1711061438354,-377.645359,0.0002178,2]
[320023313,1711061438364,-377.645359,0.0002178,2]
[320023314,1711061438375,-377.645359,0.0002178,2]
[320023315,1711061438385,-377.645359,0.0002178,2]
[320023316,1711061438396,-377.645359,0.0002178,2]
[320023317,1711061438406,-377.645359,0.0002178,2]
[320023318,1711061438416,-151.084444,0.0002178,2]
[320023319,1711061438426,-151.0,0.0002178,2]
[320023320,1711061438438,-151.0,0.0002178,2]
[320023321,1711061438447,-151.0,0.0002178,2]
[320023322,1711061438458,-151.0,0.0002178,2]
[320023323,1711061438470,-151.0,0.0002178,2]
[320023324,1711061438480,-180.755455,0.0002178,2]
[320023325,1711061438491,-151.0,0.0002178,2]
[320023326,1711061438501,-151.0,0.0002178,2]
[320023327,1711061438510,-151.0,0.0002178,2]
[320023328,1711061438519,-151.0,0.0002178,2]
[320023329,1711061438528,-151.0,0.0002178,2]
[320023330,1711061438538,-151.0,0.0002178,2]
[320023331,1711061438547,-151.0,0.0002178,2]
[320023332,1711061438557,-151.0,0.0002178,2]
[320023333,1711061438566,-151.0,0.0002178,2]
[320023334,1711061438576,-151.0,0.0002178,2]
[320023335,1711061438585,-151.0,0.0002178,2]
[320023336,1711061438594,-151.0,0.0002178,2]
[320023337,1711061438604,-151.0,0.0002178,2]
[320023338,1711061438613,-151.0,0.0002178,2]
[320023339,1711061438623,-151.0,0.0002178,2]
[320023340,1711061438635,-153.294127,0.0002178,2]
[320023341,1711061438646,-176.241644,0.0002178,2]
[320023342,1711061438659,-153.294127,0.0002178,2]
[320023343,1711061438670,-153.294127,0.0002178,2]
[320023344,1711061438680,-153.294127,0.0002178,2]
[320023345,1711061438690,-153.294127,0.0002178,2]
[320023346,1711061438700,-680.450779,0.0002178,2]
[320023347,1711061438711,-153.294127,0.0002178,2]
[320023348,1711061438720,-680.450779,0.0002178,2]
[320023349,1711061438731,-153.294127,0.0002178,2]
[320023350,1711061438740,-153.294127,0.0002178,2]
[320023351,1711061438749,-680.450779,0.0002178,2]
[320023352,1711061438759,-680.450779,0.0002178,2]
[320023353,1711061438769,-680.450779,0.0002178,2]
[320023354,1711061438780,-680.450779,0.0002178,2]
[320023355,1711061438790,-153.294127,0.0002178,2]
[320023356,1711061438801,-680.450779,0.0002178,2]
[320023357,1711061438812,-153.294127,0.0002178,2]
[320023358,1711061438822,-680.450779,0.0002178,2]
[320023359,1711061438833,-153.294127,0.0002178,2]
[320023360,1711061438843,-153.294127,0.0002178,2]
[320023361,1711061438854,-153.294127,0.0002178,2]
[320023362,1711061438864,-680.450779,0.0002178,2]
[320023363,1711061438875,-153.294127,0.0002178,2]
[320023364,1711061438885,-680.450779,0.0002178,2]
[320023365,1711061438895,-153.294127,0.0002178,2]
[320023366,1711061438905,-680.450779,0.0002178,2]
[320023367,1711061438915,-153.294127,0.0002178,2]
[320023368,1711061438927,-837.131458,0.0002178,2]
[320023369,1711061438937,-680.450779,0.0002178,2]
[320023370,1711061438948,-837.131458,0.0002178,2]
[320023371,1711061438958,-680.450779,0.0002178,2]
[320023372,1711061438968,-680.450779,0.0002178,2]
[320023373,1711061438978,-837.131458,0.0002178,2]
[320023374,1711061438988,-680.450779,0.0002178,2]
[320023375,1711061438999,-837.131458,0.0002178,2]
[320023376,1711061439008,-680.450779,0.0002178,2]
[320023377,1711061439019,-837.131458,0.0002178,2]
[320023378,1711061439029,-837.131458,0.0002178,2]
[320023379,1711061439039,-837.131458,0.0002178,2]
[320023380,1711061439050,-837.131458,0.0002178,2]
[320023381,1711061439060,-837.131458,0.0002178,2]
[320023382,1711061439070,-837.131458,0.0002178,2]
[320023383,1711061439080,-837.131458,0.0002178,2]
[320023384,1711061439090,-837.131458,0.0002178,2]
[320023385,1711061439100,-837.131458,0.0002178,2]
[320023386,1711061439110,-837.131458,0.0002178,2]
[320023387,1711061439120,-837.131458,0.0002178,2]
[320023388,1711061439130,-837.131458,0.0002178,2]
[320023389,1711061439142,-179.994095,0.0002178,2]
[320023390,1711061439155,-179.994095,0.0002178,2]
[320023391,1711061439165,-179.994095,0.0002178,2]
[320023392,1711061439176,-1199.22449124,0.0002178,2]
[320023393,1711061439186,-289.86864955,0.0002178,2]
[320023394,1711061439196,-238.89982239,0.0002178,2]
[320023395,1711061439210,-155.01820409,0.0002178,2]
[320023396,1711061439220,-189.24684445,0.0002178,2]
[320023397,1711061439230,-169.40931892,0.00021781,2]
[320023398,1711061439241,-246.7846,0.00021989,7]
[320023399,1711061439251,-151.131587,0.00021989,2]
[320023400,1711061439261,-377.645359,0.00021991,2]
[320023401,1711061439271,-377.645359,0.00021991,2]
[320023402,1711061439281,-151.0,0.00021991,2]
[320023403,1711061439294,-151.0,0.00021991,2]
[320023404,1711061439305,-153.294127,0.00021991,2]
[320023405,1711061439315,-680.450779,0.00021991,2]
[320023406,1711061439324,-680.450779,0.00021991,2]
[320023407,1711061439333,-153.294127,0.00021991,2]
[320023408,1711061439343,-680.450779,0.00021991,2]
[320023409,1711061439352,-680.450785,0.00021991,2]
[320023410,1711061439362,-837.131458,0.00021991,2]
[320023411,1711061439371,-837.131458,0.00021991,2]
[320023412,1711061439380,-359.675237,0.00022,2]
[320023413,1711061439389,-359.675237,0.00022,2]
[320023414,1711061439402,-151.0,0.00022,2]
[320023416,1711061439411,-1618.39836085,0.00022,2]
[320023418,1711061439420,-377.645359,0.00022,2]
[320023420,1711061439429,-377.645359,0.00022,2]
[320023422,1711061439438,-153.294127,0.00022,2]
[320023423,1711061439447,-153.294133,0.00022,2]
[320023425,1711061439457,-837.131458,0.00022,2]
[320023427,1711061439557,-837.13146,0.00022,2]
[320023428,1711061439567,-151.0,0.0002215,2]
[320023430,1711061439577,-377.645359,0.0002215,2]
[320023431,1711061439586,-285.51483161,0.0002215,2]
[320023432,1711061439604,-92.13052739,0.0002215,2]
[320023433,1711061439614,-359.675237,0.00022151,2]
[320023434,1711061439623,-359.675237,0.00022151,2]
[320023436,1711061439632,-151.0,0.00022151,2]
[320023437,1711061439642,-377.645359,0.00022151,2]
[320023438,1711061439656,-377.645359,0.00022151,2]
[320023439,1711061439665,-151.0,0.00022152,2]
[320023440,1711061439675,-359.675237,0.00022152,2]
[320023442,1711061439684,-359.675237,0.00022152,2]
[320023443,1711061439693,-151.0,0.00022152,2]
[320023444,1711061439702,-141.52308036,0.00022152,2]
[320023570,1711061443068,-179.994095,0.0002178,2]
[320023571,1711061443077,-179.994095,0.0002178,2]
[320023572,1711061443086,-179.994095,0.0002178,2]
[320023573,1711061443095,-179.994095,0.0002178,2]
[320023574,1711061443104,-179.994095,0.0002178,2]
[320023575,1711061443113,-179.994095,0.0002178,2]
[320023576,1711061443122,-179.994095,0.0002178,2]
[320023577,1711061443131,-179.994095,0.0002178,2]
[320023578,1711061443139,-179.994095,0.0002178,2]
[320023579,1711061443148,-179.994095,0.0002178,2]
[320023580,1711061443159,-25.38239376,0.0002178,2]
[320023581,1711061443170,-154.61170124,0.0002178,2]
[320023582,1711061443179,-179.994095,0.0002178,2]
[320023583,1711061443188,-179.994095,0.0002178,2]
[320023584,1711061443197,-236.12227864,0.00022152,2]
[320023585,1711061443207,-377.64536,0.00022152,2]
[320023586,1711061443218,-151.0,0.0002217,2]
[320023587,1711061443228,-151.0,0.0002217,2]
[320023588,1711061443237,-151.0,0.0002217,2]
[320023589,1711061443246,-151.0,0.0002217,2]
[320023590,1711061443256,-71.95589312,0.0002217,2]
[320023673,1711061714800,170.395288,0.00023288,120]
[320023690,1711062183231,161.875523,0.00023288,120]
[320023769,1711062638175,-154.86062544,0.00020574,2]
[320023770,1711062638184,-1043.50589469,0.00020574,2]
[320023771,1711062638194,-1886.39734478,0.00020575,2]
[320023772,1711062638203,-154.86062544,0.00020576,2]
[320023773,1711062638213,-154.86062544,0.00020576,2]
[320023774,1711062638222,-5370.66885234,0.00020625,2]
[320023775,1711062638231,-5537.80860274,0.00021,2]
[320023776,1711062638240,-250.9718593,0.00021778,2]
[320023777,1711062638249,-161.65189036,0.00021779,2]
[320023778,1711062638258,-171.66627487,0.00021948,2]
[320023779,1711062638267,-400.0,0.000221,2]
[320023780,1711062638277,-276.60701,0.00022149,2]
[320023781,1711062638286,-876.67409275,0.0002217,2]
[320023782,1711062638295,-620.00055984,0.0002246,2]
[320023783,1711062638305,-169.0,0.00022608,2]
[320023784,1711062638314,-169.0,0.00022882,2]
[320023785,1711062638323,-275.42113425,0.0002303,2]
[320023786,1711062638332,-170.0,0.00023156,2]
[320023787,1711062638342,-161.875523,0.00023288,2]
[320023788,1711062638351,-161.875523,0.00023288,8]
[320023789,1711062638360,-161.875523,0.00023288,14]
[320023790,1711062638369,-161.875523,0.00023288,20]
[320023791,1711062638378,-161.875523,0.00023288,26]
[320023792,1711062638388,-161.875523,0.00023288,33]
[320023793,1711062638398,-161.875523,0.00023288,39]
[320023794,1711062638407,-161.875523,0.00023288,45]
[320023795,1711062638428,-161.875523,0.00023288,51]
[320023796,1711062638438,-161.875523,0.00023288,57]
[320023797,1711062638448,-161.875523,0.00023288,64]